Cogmind - Beta 15 @@@ ROGUE MODE // 2025.08.23 @ 21:03:58 Player: NQH Result: Destroyed by Y-45 Defender with Beam Rifle Performance ------------- Evolutions (2) 1000 Regions Visited (6) 1200 Robots Destroyed (38) 190 Value Destroyed (1085) 1085 Prototype IDs (2) 40 Alien Tech Used (0) 0 Bonus (200) 200 TOTAL SCORE: 3715 Bonus ------- Entered Garrisons 200 Cogmind --------- Core Integrity 0/550 Matter 255/300 Energy 100/100 System Corruption 0% Temperature Cool (9) Movement Core (100) Ox1 Location -8/Materials Parts ------- > --- POWER (1) -------- (None) > --- PROPULSION (4) --- (None) > --- UTILITY (4) ------ Hacking Suite High-powered Tractor Beam > --- WEAPON (2) ------- Welding Torch Axe > --- INVENTORY (5) ---- Ion Cannon High-powered Shotgun Peak State ------------ > --- POWER ------------ (None) > --- PROPULSION ------- Advanced Treads > --- UTILITY ---------- Launcher Guidance Computer Launcher Guidance Computer Launcher Guidance Computer Launcher Guidance Computer > --- WEAPON ----------- Ion Cannon High-powered Shotgun > --- INVENTORY -------- Axe [Rating: 25] Favorites ----------- Power Light Ion Engine Engine Light Ion Engine Propulsion Hover Unit Treads Advanced Treads Hover Unit Hover Unit Flight Unit Flight Unit Utility Launcher Guidance Computer Device Seismic Detector Processor Launcher Guidance Computer Hackware Hacking Suite Weapon Grenade Launcher Energy Cannon Ion Cannon Ballistic Gun High-powered Shotgun Launcher Grenade Launcher Special Weapon Welding Torch Impact Weapon Maul Slashing Weapon Mining Claw Build | -11 -10 -9 -9 -8 -8 -8 ------- Run | Yrd Mat Mat Min Mat Gar Mat Slots Evolved 4 | . . 2 . 2 . . Power . | . . . . . . . Propulsion 2 | . . 2 . . . . Utility 2 | . . . . 2 . . Weapon . | . . . . . . . Parts Attached 30 | . 7 7 2 11 . 3 Power 3 | . 1 1 1 . . . Engine 3 | . 1 1 1 . . . Core . | . . . . . . . Reactor . | . . . . . . . Propulsion 7 | . 3 3 . 1 . . Treads 1 | . . . . 1 . . Leg . | . . . . . . . Wheel . | . . . . . . . Hover 5 | . 3 2 . . . . Flight 1 | . . 1 . . . . Utility 9 | . 2 . 1 4 . 2 Device 3 | . 1 . 1 . . 1 Storage . | . . . . . . . Processor 5 | . 1 . . 4 . . Hackware 1 | . . . . . . 1 Protection . | . . . . . . . Artifact . | . . . . . . . Weapon 11 | . 1 3 . 6 . 1 Energy Gun . | . . . . . . . Energy Cannon 1 | . . . . 1 . . Ballistic Gun 1 | . . . . 1 . . Ballistic Cannon . | . . . . . . . Launcher 5 | . . 2 . 3 . . Special Weapon 1 | . . . . . . 1 Impact Weapon 1 | . . 1 . . . . Slashing Weapon 2 | . 1 . . 1 . . Piercing Weapon . | . . . . . . . Special Melee Weapon . | . . . . . . . Unidentified Prototypes . | . . . . . . . Parts Lost 13 | . 1 4 2 6 . . Power 2 | . . . 1 1 . . Propulsion 5 | . 1 3 . 1 . . Utility 1 | . . 1 . . . . Weapon 5 | . . . 1 4 . . Highest Loss Streak 3 | . 1 3 2 2 . . To Critical Strikes . | . . . . . . . Average Backups 2 | . . 3 4 1 2 2 Power . | . . . . . . . Propulsion . | . . . . . . . Utility . | . . 1 . . . . Weapon 1 | . . 2 3 1 2 2 Tool/Special . | . . . . . . . Unused Backups 1 | . 1 . . . . . Power . | . . . . . . . Propulsion 1 | . 1 . . . . . Utility . | . . . . . . . Weapon . | . . . . . . . Tool/Special . | . . . . . . . Average Slot Usage (%) 56 | . 56 68 51 59 45 25 Engine 6 | . 11 11 10 3 . . Treads 1 | . . . . 3 . . Hover 4 | . 15 14 . . . . Flight 2 | . . 4 11 . . . Device 4 | . 7 8 7 1 . 2 Processor 21 | . 11 11 11 32 36 5 Energy Cannon 1 | . . . . 2 . . Ballistic Gun 1 | . . . . 4 . . Launcher 8 | . . 12 11 10 . . Slashing Weapon 3 | . 10 4 . . 9 9 Peak Build Rating 25 | . 6 10 5 25 19 19 Average Rating 12 | . 4 6 4 19 19 7 On Entrance 7 | . . 6 5 5 19 19 Naked Turns 21 | . 21 . . . . . Heaviest Build 10 | . 6 10 9 10 3 5 Greatest Support 24 | 3 12 24 4 22 3 3 Greatest Overweight (x) 3 | . . 3 2 3 . 1 Average Overweight (x) . | . . . . 1 . . Largest Inventory Capacity 5 | 5 5 5 5 5 5 5 Average Capacity 5 | 5 5 5 5 5 5 5 Most Carried 5 | . 3 5 5 5 2 2 Average Carried 2 | . . 3 4 2 2 2 Final Capacity 5 | 5 5 5 5 5 5 5 Final Carried 5 | . 3 5 5 2 2 2 Class Distribution -------------------- 100% | Mutant Dominant Class ---------------- Mutant | -10/Materials Mutant | -9/Materials Mutant | -9/Mines Mutant | -8/Materials Mutant | -8/Garrison Mutant | -8/Materials Resources | -11 -10 -9 -9 -8 -8 -8 ----------- Run | Yrd Mat Mat Min Mat Gar Mat Matter Collected 805 | 195 55 161 28 366 . . Remotely . | . . . . . . . Salvage Created 1029 | . 172 480 38 339 . . Parts 65 | . 8 29 7 21 . . Haulers Intercepted 1 | . . 1 . . . . Recyclers Shooed 3 | . . 1 . 2 . . Parts Field Recycled . | . . . . . . . Retrieved Matter . | . . . . . . . Parts Self-Destructed . | . . . . . . . Prevented . | . . . . . . . Kills | -11 -10 -9 -9 -8 -8 -8 ------- Run | Yrd Mat Mat Min Mat Gar Mat Combat Hostiles Destroyed 28 | . 2 13 3 10 . . Melee 4 | . 2 1 . 1 . . Cannons 1 | . . . . 1 . . AOE 21 | . . 10 3 8 . . Classes Destroyed 10 | . 3 3 . 4 . . Worker 1 | . . . . 1 . . Builder 2 | . . 1 1 . . . Hauler 1 | . . 1 . . . . Recycler 4 | . 1 2 . 1 . . Watcher 2 | . 1 . . 1 . . Swarmer 6 | . . 3 3 . . . Grunt 17 | . 2 10 . 5 . . Brawler 1 | . . . . 1 . . Duelist 1 | . . . . 1 . . Sentry 3 | . . . . 3 . . Best Kill Streak 9 | . 2 9 3 5 . . Combat Bots Only 7 | . 2 7 3 4 . . Max Kills in Single Turn 4 | . 1 4 2 3 . . Gunslinging . | . . . . . . . Exploded 4 | . . 4 2 2 . . Melee 1 | . 1 1 . 1 . . Uniques/NPCs Destroyed . | . . . . . . . Combat | -11 -10 -9 -9 -8 -8 -8 -------- Run | Yrd Mat Mat Min Mat Gar Mat Hostile Shots Fired 147 | . 15 47 5 77 . 3 Missed 40 | . 2 9 4 23 . 2 Hits 107 | . 13 38 1 54 . 1 Projectile 107 | . 13 38 1 54 . 1 Critical Strikes 1 | . . . . 1 . . Part Disruptions 1 | . . . . 1 . . Damage Taken 1670 | 5 156 387 67 1041 . 14 Core 783 | 5 74 137 17 536 . 14 Absorbed by Shields . | . . . . . . . Core Remaining (%) 75 | 98 68 . 61 . . . Volleys Fired 26 | . . 4 3 19 . . Largest 2 | . . 2 2 2 . . Hottest 85 | . . 60 60 85 . . Shots Fired 46 | . . 8 3 35 . . Gun 11 | . . . . 11 . . Cannon 2 | . . . . 2 . . Launcher 33 | . . 8 3 22 . . Special . | . . . . . . . Kinetic 11 | . . . . 11 . . Thermal 2 | . . . . 2 . . Explosive 33 | . . 8 3 22 . . Electromagnetic . | . . . . . . . Robot Hit Streak 9 | . . 1 2 9 . . Robot Miss Streak 4 | . . 2 1 4 . . Penetration Max . | . . . . . . . Secondary Targets . | . . . . . . . Shots Hit Robots 52 | . 8 9 2 31 . 2 Core Hits 66 | . 5 25 4 32 . . Critical Kills . | . . . . . . . Critical Parts Destroyed 3 | . . 3 . . . . Critical Strikes 4 | . . 3 . . . 1 Smash 3 | . . 3 . . . . Sever 1 | . . . . . . 1 Melee Attacks 32 | . 14 11 . 4 . 3 Impact 9 | . . 9 . . . . Slashing 23 | . 14 2 . 4 . 3 Piercing . | . . . . . . . Sneak Attacks 3 | . 1 2 . . . . Combat Hostiles . | . . . . . . . Follow-up Attacks . | . . . . . . . Damage Inflicted 2786 | 10 191 867 239 1420 . 59 Guns 145 | . . . . 145 . . Cannons 24 | . . . . 24 . . Explosions 1890 | . . 510 238 1142 . . Melee 716 | . 191 357 . 109 . 59 Ramming 11 | 10 . . 1 . . . Kinetic 145 | . . . . 145 . . Thermal 348 | . . . . 348 . . Explosive 1556 | . . 510 238 808 . . Electromagnetic 10 | . . . . 10 . . Impact 357 | . . 357 . . . . Slashing 359 | . 191 . . 109 . 59 Piercing . | . . . . . . . Highest Corruption 1 | . . . 1 . . . Average Corruption 1 | . . . 1 . . . Corruption Purged . | . . . . . . . Corruption Blocked . | . . . . . . . Overload Shots . | . . . . . . . Overflow Damage 273 | . 18 156 33 66 . . Projectiles . | . . . . . . . Explosions 99 | . . . 33 66 . . Melee 174 | . 18 156 . . . . Knockbacks 1 | . . 1 . . . . Impact 1 | . . 1 . . . . Kinetic . | . . . . . . . Secondary . | . . . . . . . Self-Inflicted Damage 336 | 5 . 47 61 223 . . Shots 12 | . . 2 3 7 . . Rammed 3 | 1 . . 2 . . . Targets Rammed 3 | 1 . . 2 . . . Kicked . | . . . . . . . Crushed . | . . . . . . . Highest Temperature 12 | . . 12 . 9 . . Average Temperature 6 | . . 8 . 5 . . Received Heat Transfer 411 | . 87 81 . 234 . 9 Siege Activations . | . . . . . . . Martial Activations . | . . . . . . . Shielding Activations . | . . . . . . . Robots Disrupted . | . . . . . . . Combat Hostiles . | . . . . . . . Robots Corrupted 2 | . . 2 . . . . Combat Hostiles 2 | . . 2 . . . . Parts Fried 1 | . . 1 . . . . Impact Corruptions 7 | . . 7 . . . . Robots Melted . | . . . . . . . Combat Hostiles . | . . . . . . . Parts Melted . | . . . . . . . Heat Transferred 237 | . . . . 237 . . Parts Sabotaged . | . . . . . . . Parts Stolen . | . . . . . . . Parts Stripped . | . . . . . . . Power Chain Reactions 1 | . . . . 1 . . Alert | -11 -10 -9 -9 -8 -8 -8 ------- Run | Yrd Mat Mat Min Mat Gar Mat Maximum Alert Level 1 | . . 1 1 1 . . Low Security (%) 76 | 100 100 62 77 68 100 100 Level 1 23 | . . 37 22 31 . . Level 2 . | . . . . . . . Level 3 . | . . . . . . . Level 4 . | . . . . . . . Level 5 . | . . . . . . . High Security . | . . . . . . . Max Security . | . . . . . . . Peak Influence 361 | . 30 361 211 248 146 70 Initial 136 | . . . 136 54 132 70 Average 114 | . 10 152 180 120 137 60 Influence Increases 1084 | . 71 476 105 418 14 . Destroy 0b10 Robot/C 560 | . 40 260 60 200 . . Destroy 0b10 Robot/NC 50 | . 10 20 5 15 . . Destroy Leader 126 | . 12 42 10 62 . . Successful Hack 36 | . 9 4 . 9 14 . Disable Machine 90 | . . 30 15 45 . . Destroy Structure 132 | . . 30 15 87 . . Lose Combat Pursuer 90 | . . 90 . . . . Influence Decreases 1034 | . 70 126 315 355 72 96 Entered New Map 451 | . . 1 215 87 72 76 Time Decay 458 | . 60 90 80 208 . 20 Lost Part 125 | . 10 35 20 60 . . Squads Dispatched 6 | . . 4 . 2 . . Investigation 3 | . . 3 . . . . Extermination . | . . . . . . . Reinforcement 2 | . . 1 . 1 . . Assault . | . . . . . . . Garrison 1 | . . . . 1 . . Intercept . | . . . . . . . Searches Triggered . | . . . . . . . Construction Impeded . | . . . . . . . Haulers Reinforced . | . . . . . . . Active Scanning Responses . | . . . . . . . Cargo Convoy Interrupts . | . . . . . . . Stealth | -11 -10 -9 -9 -8 -8 -8 --------- Run | Yrd Mat Mat Min Mat Gar Mat Distress Signals 1 | . . . . 1 . . Communications Jammed . | . . . . . . . Distress Signals . | . . . . . . . Times Spotted 47 | . 4 21 3 16 . 3 Peak Tracking Total 7 | . 2 7 3 7 . 3 Tactical Retreats 3 | . . 3 . . . . Traps | -11 -10 -9 -9 -8 -8 -8 ------- Run | Yrd Mat Mat Min Mat Gar Mat Traps Triggered 2 | . . . . . 2 . Indirectly . | . . . . . . . Trap Hack Attempts . | . . . . . . . Triggered . | . . . . . . . Disarmed . | . . . . . . . Reprogrammed . | . . . . . . . Reused . | . . . . . . . Traps Extracted . | . . . . . . . Installed 3 | . . . . 3 . . Triggered . | . . . . . . . Most Traps Carried 3 | . . . 3 3 . . Machines | -11 -10 -9 -9 -8 -8 -8 ---------- Run | Yrd Mat Mat Min Mat Gar Mat Machines Disabled 6 | . . 2 1 3 . . Max in Single Turn 1 | . . 1 1 1 . . Machines Repaired . | . . . . . . . Machines Dismantled . | . . . . . . . Machines Sabotaged . | . . . . . . . Overloaded Fab Kills . | . . . . . . . Hacking | -11 -10 -9 -9 -8 -8 -8 --------- Run | Yrd Mat Mat Min Mat Gar Mat Machines Accessed 8 | . 2 3 . 2 1 . Terminals 7 | . 2 3 . 1 1 . Fabricators . | . . . . . . . Repair Stations . | . . . . . . . Recycling Units . | . . . . . . . Scanalyzers . | . . . . . . . Garrison Access 1 | . . . . 1 . . Total Hacks 32 | . 12 11 . 8 1 . Successful 18 | . 7 5 . 5 1 . Failed 14 | . 5 6 . 3 . . Catastrophic 2 | . . 2 . . . . Database Lockouts . | . . . . . . . Manual . | . . . . . . . Terminals 31 | . 12 11 . 7 1 . Fabricators . | . . . . . . . Repair Stations . | . . . . . . . Recycling Units . | . . . . . . . Scanalyzers . | . . . . . . . Garrison Access 1 | . . . . 1 . . Terminal Hacks 17 | . 7 5 . 4 1 . Record 6 | . 3 2 . 1 . . Prototype ID Bank 1 | . 1 . . . . . Emergency Access Points 1 | . . 1 . . . . Alert Level 3 | . 2 1 . . . . Disarm Traps 1 | . . . . 1 . . Dispatch Records 2 | . 1 . . 1 . . Reinforcement Status 1 | . . . . 1 . . Zone Layout 1 | . . 1 . . . . Garrison Registry 1 | . . . . . 1 . Fabricator Hacks . | . . . . . . . Repair Station Hacks . | . . . . . . . Recycling Unit Hacks . | . . . . . . . Scanalyzer . | . . . . . . . Garrison Access Hacks 1 | . . . . 1 . . Unlock Access 1 | . . . . 1 . . Unauthorized Hacks . | . . . . . . . Terminals . | . . . . . . . Fabricators . | . . . . . . . Repair Stations . | . . . . . . . Recycling Units . | . . . . . . . Scanalyzers . | . . . . . . . Garrison Access . | . . . . . . . Data Cores Recovered . | . . . . . . . Used . | . . . . . . . Hacking Detections 8 | . 2 3 . 2 1 . Full Trace Events 6 | . 2 3 . 1 . . Feedback Events . | . . . . . . . Feedback Blocked . | . . . . . . . Robot Schematics Acquired . | . . . . . . . Robots Built . | . . . . . . . Authchips . | . . . . . . . Time . | . . . . . . . Total Robot Build Rating . | . . . . . . . Part Schematics Acquired . | . . . . . . . Parts Built . | . . . . . . . Authchips . | . . . . . . . Time . | . . . . . . . Total Part Build Rating . | . . . . . . . Parts Repaired . | . . . . . . . Time . | . . . . . . . Parts Recycled . | . . . . . . . Recycled Matter . | . . . . . . . Retrieved Matter . | . . . . . . . Retrieved Components . | . . . . . . . Parts Scanalyzed . | . . . . . . . Part Schematics Acquired . | . . . . . . . Parts Damaged . | . . . . . . . Bothacking | -11 -10 -9 -9 -8 -8 -8 ------------ Run | Yrd Mat Mat Min Mat Gar Mat Used RIF Installer . | . . . . . . . Robots Hacked . | . . . . . . . Non-combat . | . . . . . . . Combat . | . . . . . . . Robot Hacks Applied . | . . . . . . . Relay Couplers Released . | . . . . . . . Fabnet Peak Effective % . | . . . . . . . Robots Rewired . | . . . . . . . Allies Hacked . | . . . . . . . Hacks Repelled . | . . . . . . . Allies | -11 -10 -9 -9 -8 -8 -8 -------- Run | Yrd Mat Mat Min Mat Gar Mat Total Allies . | . . . . . . . Largest Group . | . . . . . . . Highest-Rated Group . | . . . . . . . Highest-Rated Ally . | . . . . . . . Total Orders . | . . . . . . . Ally Attacks . | . . . . . . . Total Damage . | . . . . . . . Kills . | . . . . . . . Allies Corrupted . | . . . . . . . Allies Melted . | . . . . . . . Intel | -11 -10 -9 -9 -8 -8 -8 ------- Run | Yrd Mat Mat Min Mat Gar Mat Active Infowar (turns) 462 | . 87 184 116 75 . . Structural 191 | . . . 116 75 . . Seismic 271 | . 87 184 . . . . Robot Analysis Total . | . . . . . . . Derelict Logs Recovered . | . . . . . . . Drone Launches . | . . . . . . . Drone Recoveries . | . . . . . . . Exploration | -11 -10 -9 -9 -8 -8 -8 ------------- Run | Yrd Mat Mat Min Mat Gar Mat Turns Passed 1291 | 28 176 229 161 559 81 57 Spaces Moved 1037 | 54 211 166 122 313 101 70 Core 442 | 54 40 15 . 162 101 70 Treads 149 | . . . . 149 . . Legs . | . . . . . . . Wheels . | . . . . . . . Hover 282 | . 171 111 . . . . Flight 164 | . . 40 122 2 . . Fastest Speed 40 | 50 50 48 40 50 50 50 Average Speed 97 | 50 56 104 118 146 50 57 Slowest Speed 200 | 50 60 200 200 200 50 100 Overloaded Moves . | . . . . . . . Propulsion Burnouts . | . . . . . . . Robots Hopped . | . . . . . . . Potential Cave-ins . | . . . . . . . Cave-ins Triggered . | . . . . . . . Exploration Rate (%) 21 | 4 34 21 36 21 24 9 Regions Visited 6 Branch Regions 1 Pre-discovered Areas . | . . . . . . . Known Exits Taken 4 | . 1 1 1 1 . . Unknown Exits Taken 1 | 1 . . . . . . Scrap Searched . | . . . . . . . Spaces Dug . | . . . . . . . Terrain Destroyed 138 | . . 27 17 94 . . Melee . | . . . . . . . Projectile . | . . . . . . . AOE 138 | . . 27 17 94 . . Terrain Rammed . | . . . . . . . Walls Destroyed . | . . . . . . . Machines Disabled . | . . . . . . . Actions | -11 -10 -9 -9 -8 -8 -8 --------- Run | Yrd Mat Mat Min Mat Gar Mat Total 1203 | 54 235 194 134 373 130 83 Wait 8 | . . . . 5 . 3 Move 1031 | 53 210 165 121 312 100 70 Hop . | . . . . . . . Pick Up 13 | . 3 2 3 5 . . Fast Attach 21 | . 7 4 2 5 . 3 Attach 11 | . . 3 . 8 . . Detach 13 | . . 3 . 6 . 4 Swap 1 | . . 1 . . . . Drop 12 | . 1 2 3 6 . . Fire 26 | . . 4 3 19 . . Melee 31 | . 14 10 . 4 . 3 Ram 3 | 1 . . 2 . . . Kick . | . . . . . . . Crush . | . . . . . . . Escape Stasis 30 | . . . . . 30 . Rewire . | . . . . . . . Trap 3 | . . . . 3 . . Miscellaneous . | . . . . . . . Route ------- -11/Scrapyard -10/Materials -9/Materials -9/Mines -8/Materials -8/Garrison (discovered 3 exits: [*Mat x3]) -8/Materials History --------- Turn | Location | Event 3 | -11/Scrapyard | Discovered new exit (range 16) 29 | -11/Scrapyard | Entered Materials 185 | -10/Materials | Discovered new exit (range 10) 190 | -10/Materials | Identified exit to Materials 205 | -10/Materials | Entered another Materials area 205 | -9/Materials | Evolved 2 slots: Propulsion x2 320 | -9/Materials | Lost 3 parts (3n) 321 | -9/Materials | Build established: Mutant 326 | -9/Materials | Destroyed 7 combat bots 407 | -9/Materials | Discovered new exit (range 11) 432 | -9/Materials | Identified exit to Mines 434 | -9/Materials | Entered Mines 547 | -9/Mines | Found a hidden stash of uninstalled traps 579 | -9/Mines | Discovered new exit (range 13) 594 | -9/Mines | Identified exit to Materials 595 | -9/Mines | Entered Materials 595 | -8/Materials | Evolved 2 slots: Utility x2 1148 | -8/Materials | Core integrity fell below 50% 1148 | -8/Materials | Garrison activated, responded to threat 1151 | -8/Materials | Core integrity fell below 20% 1154 | -8/Materials | Identified exit to Garrison 1154 | -8/Materials | Entered Garrison 1164 | -8/Garrison | Triggered checkpoint 1205 | -8/Garrison | Discovered new exit (range 39) 1205 | -8/Garrison | Discovered new exit (range 62) 1205 | -8/Garrison | Discovered new exit (range 40) 1235 | -8/Garrison | Entered Materials 1292 | -8/Materials | Destroyed by Y-45 Defender with Beam Rifle Last Messages --------------- 01189_ Field strength at 22. 01190_ Field strength at 16. 01191_ Field strength at 10. 01192_ Field strength at 4. 01193_ Stasis field depleted. 01205_ Connecting with Garrison Terminal... 01205_ EXIT=FOUND >>Download(Registry) Retrieving Garrison registry... Downloaded map data. Downloaded component registry. Downloaded security status. [Achievement: Fearless] LOCATION=UNKNOWN GOAL=ESCAPE 01238_ Discarded Launcher Guidance Computer. 01247_ Acquired Hacking Suite. 01272_ Acquired Welding Torch. 01275_ Acquired Hpw. Tractor Beam. 01285_ W-25 Informer Imp. Hover Unit severed. Map ----- +----------------------------------------------------+ | | | | | | | | | | | | | | | | | | | | | | | | | | | | | ?????????????????????????????????????????????????? | | ?????????????????????????????????????????????????? | | ?????????????????????????????????????????????????? | | ??????????????????????????##########?????????????? | | #########################?# #?????????????? | | ^ #?# #?????????????? | | ##### #?# #?????????????? | | ### """ #?????????????? | | # = """""#?????????????? | | " ^ + """""#?????????????? | | # """""#?????????????? | | ##########+#########@# """ ??????????????? | | ######??????# #?#Y# #?????????????? | | ????????????# """ """ #?#w##########?????????????? | | ????????????# """ """ #? r ??????????????????????? | | ????????????# """ """ #? ??????????????????????? | | ????????????# """ """ #? ??????????????????????? | | ????????????# #? ??????????????????????? | | ????????????# ! # ?????????????????????? | | ????????????# ## #?????????????????????? | | ????????????############ #?????????????????????? | | ???????????????????????# #?????????????????????? | | ???????????????????????# #?????????????????????? | | ???????????????????????# #?????????????????????? | | ???????????????????????? ??????????????????????? | | ???????????????????????? ??????????????????????? | | ???????????????????????? w??????????????????????? | | ?????????????????????????????????????????????????? | | ?????????????????????????????????????????????????? | | ?????????????????????????????????????????????????? | | ?????????????????????????????????????????????????? | | ?????????????????????????????????????????????????? | | ?????????????????????????????????????????????????? | | ?????????????????????????????????????????????????? | | ?????????????????????????????????????????????????? | | ?????????????????????????????????????????????????? | +----------------------------------------------------+ Best States ------------- Heat Dissipation 31 Energy Generation 10 Energy Capacity 125 Matter Stores 300 Matter Capacity 300 Sight Range 16 Terrain Scan Density 10 Evasion (%) 55 Launcher Accuracy 80 Recoil Reduction 1 Offensive Hacking 10 Item Schematics ----------------- None Robot Schematics ------------------ None Fabricated ------------ Nothing Repaired ---------- Nothing Alien Tech Used ----------------- None Achievements -------------- Fearless Challenges ------------ None Game ------ Seed GrenadeCoilDetector Manual? 0 Play Time 00:11:51 Cumulative 17.5 hours Start 2025.08.23 @ 20:52:50 End 2025.08.23 @ 21:03:58 Sessions 1 Manual Loads 0 Difficulty Rogue Special Mode None Game No. 53 Rogue 53 Adventurer 0 Explorer 0 Win Type - Total 0 Types 0/0/0/0/0/0/0/0/0/0 Lore% 10 Gallery% 23 Achievement% 23 Wizard Run 0 Options --------- Layout 1 ASCII 0 Keyboard 1 Movement Vi Keybinds 0 Fullscreen 1 Font 16/SmallcapsGlow Map View 55x38 Zoom Use 0% Tactical HUD 1 Map Filters NONE Filters NONE Steam 1 RUN: 81cbc6ce-36f3-4683-95d7-5aea363cca79